[Event "FIDE Open World Rapid 2024"]
[Site "New York"]
[Date "2024.12.27"]
[Round "8.38"]
[White "Le, Quang Liem"]
[Black "Hakobyan, Aram"]
[Result "1-0"]
[ECO "D05"]
[WhiteElo "2739"]
[BlackElo "2625"]
[Annotator "TA"]
[PlyCount "77"]
[EventDate "2024.12.14"]
[EventType "swiss"]
[EventCountry "USA"]
[SourceTitle "playchess.com"]
[Source "ChessBase"]
[SourceQuality "1"]
[TimeControl "900+10"]

{[%evp 17,77,2,0,-10,-12,-12,0,-4,0,-7,0,-7,5,7,20,13,59,52,135,73,150,152,185,193,318,345,337,347,338,352,337,344,317,316,351,341,362,360,841,838,947,557,522,506,786,620,716,666,1131,1079,2121,1800,1762,2179,2363,2637,2733,2595,29987,29988,29988,29989]} 1. d4 {[%emt 0:00:02]} Nf6 {[%emt 0:00:03]} 2. Nf3 {[%emt 0:00:02]} d5 {[%emt 0:00:04]} 3. e3 {[%emt 0:00:20]} e6 {[%emt 0:00:05]} 4. Bd3 {[%emt 0:00:05]} Be7 {[%emt 0:00:20]} 5. O-O {[%emt 0:00:05]} O-O {[%emt 0:00:03]} 6. b3 {[%emt 0:00:06]} b6 {[%emt 0:00:03]} 7. Bb2 {[%emt 0:00:03]} Bb7 {[%emt 0:00:03]} 8. Nbd2 {[%emt 0:00:25]} Nbd7 {[%emt 0:00:08]} 9. Qe2 {[%emt 0:00:23]} a5 {[%emt 0:00:24]} 10. a4 {[%emt 0:00:50]} Ne4 {[%emt 0:00:12]} 11. Rac1 {[%emt 0:00:23]} Bd6 {[%emt 0:01:03]} 12. Rfd1 {[%emt 0:01:25]} Qe7 {[%emt 0:00:41]} 13. c4 {[%emt 0:01:00]} Rfc8 {[%emt 0:02:35]} 14. Bb1 {[%emt 0:00:57]} Nxd2 {[%emt 0:00:34]} 15. Nxd2 {[%emt 0:00:17]} Bb4 {[%emt 0:02:33]} 16. e4 {[%emt 0:00:38]} Bxd2 {[%emt 0:01:42]} (16... dxe4 $11 17. Bxe4 (17. Nxe4 Re8 $11) 17... Bxe4 18. Nxe4 h6) 17. Rxd2 $14 {[%emt 0:00:04]} Qb4 {[%emt 0:00:46]} (17... dxe4 $14 18. Bxe4 Bxe4 19. Qxe4 Re8) 18. Rd3 {[%emt 0:01:38]} ({Better is} 18. cxd5 exd5 19. e5) 18... Nf8 {[%emt 0:02:08]} ({Black should play} 18... dxe4 19. Rg3 f5) 19. Rg3 $16 {[%emt 0:00:28]} dxc4 {[%emt 0:00:56]} 20. d5 {[%emt 0:01:49]} (20. bxc4 Ng6 21. e5 Qe7 $16) (20. Rxc4 Qe7) (20. Qxc4 $6 Ng6 $16) 20... e5 {[%emt 0:00:01]} (20... g6 $142) 21. Bxe5 $18 {[%emt 0:00:43]} (21. Rxc4 $6 Qe7 22. Qg4 f6 $16) 21... Ng6 {[%emt 0:00:02]} 22. Bc3 {[%emt 0:00:06]} ({Inferior is} 22. Rxc4 Ba6 23. Bb2 (23. Bxc7 $2 {loses.} Bxc4 24. Qd1 Rxc7 $19) (23. Rxb4 Bxe2 24. Rxg6 hxg6 $11) 23... Bxc4 24. Qxc4 c6 $11) 22... Qa3 {[%emt 0:01:27]} 23. Bb2 {[%emt 0:00:24]} Qe7 {[%emt 0:00:11]} 24. bxc4 {[%emt 0:00:11]} ({Resist} 24. Qxc4 c6 25. Rd1 cxd5) 24... c6 {[%emt 0:00:17]} 25. Rd1 {[%emt 0:00:15]} cxd5 {[%emt 0:00:01]} 26. cxd5 {[%emt 0:00:03]} Ba6 {[%emt 0:00:12]} 27. Qd2 {[%emt 0:00:41]} f6 $2 {[%emt 0:01:20]} (27... Qb4 28. h4 Qxd2 29. Rxd2 f6) 28. d6 $18 {[%emt 0:00:29]} Qf7 {[%emt 0:00:01]} 29. f4 {[%emt 0:00:37]} Bc4 {[%emt 0:01:09]} 30. h4 {[%emt 0:01:12]} Nf8 {[%emt 0:00:26]} (30... Rc5 $142 31. Ba3 Rcc8) 31. h5 {[%emt 0:00:17]} h6 {[%emt 0:00:11]} 32. Qd4 {[%emt 0:00:25]} Nd7 {[%emt 0:00:17]} 33. e5 {[%emt 0:00:04]} Qxh5 {[%emt 0:00:14]} 34. exf6 {[%emt 0:00:14]} Bf7 {[%emt 0:00:23]} 35. Rxg7+ {[%emt 0:00:54]} Kf8 {[%emt 0:00:00]} 36. Re1 {[%emt 0:00:05]} Rc4 {[%emt 0:00:13]} 37. Qf2 {[%emt 0:00:19]} Rac8 {[%emt 0:00:17]} 38. Qg3 {[%emt 0:00:18]} Qc5+ {[%emt 0:00:11]} 39. Re3 {[%emt 0:00:09]} 1-0

[Event "FIDE Open World Rapid 2024"]
[Site "New York"]
[Date "2024.12.28"]
[Round "8.38"]
[White "Escobar Forero, Alder"]
[Black "Esquivel Golcher, Luis Enrique"]
[Result "1-0"]
[ECO "C13"]
[WhiteElo "2420"]
[BlackElo "2081"]
[Annotator "ChessBase"]
[PlyCount "134"]
[EventDate "2024.12.14"]
[EventType "swiss"]
[EventCountry "USA"]
[SourceTitle "playchess.com"]
[Source "ChessBase"]
[SourceQuality "1"]
[TimeControl "900+10"]

1. e4 {[%emt 0:00:04]} e6 {[%emt 0:00:03]} 2. d4 {[%emt 0:00:02]} d5 {[%emt 0:00:01]} 3. Nc3 {[%emt 0:00:02]} Nf6 {[%emt 0:00:08]} 4. Bg5 {[%emt 0:00:09]} dxe4 {[%emt 0:00:04]} 5. Nxe4 {[%emt 0:00:02]} Be7 {[%emt 0:00:00]} 6. Bxf6 {[%emt 0:00:06]} gxf6 {[%emt 0:00:02]} 7. Nf3 {[%emt 0:00:03]} b6 {[%emt 0:00:02]} 8. g3 {[%emt 0:00:17]} Bb7 {[%emt 0:00:01]} 9. Qe2 {[%emt 0:02:13]} Qd5 {[%emt 0:01:11]} 10. Ned2 {[%emt 0:00:10]} Nc6 {[%emt 0:01:58]} 11. c3 {[%emt 0:00:13]} e5 {[%emt 0:01:13]} 12. Qb5 {[%emt 0:08:08]} Qxb5 {[%emt 0:01:02]} 13. Bxb5 {[%emt 0:00:02]} a6 {[%emt 0:00:00]} 14. Bxc6+ {[%emt 0:00:14]} Bxc6 {[%emt 0:00:02]} 15. O-O {[%emt 0:00:04]} O-O-O {[%emt 0:02:05]} 16. Rfe1 {[%emt 0:00:15]} Bd6 {[%emt 0:00:38]} 17. Re3 {[%emt 0:00:38]} exd4 {[%emt 0:00:13]} 18. Nxd4 {[%emt 0:00:12]} Bb7 {[%emt 0:00:17]} 19. Ne4 {[%emt 0:01:44]} Be5 {[%emt 0:02:15]} 20. Nf3 {[%emt 0:00:06]} Bd5 {[%emt 0:02:20]} 21. a3 {[%emt 0:00:25]} Kb7 {[%emt 0:00:01]} 22. Rae1 {[%emt 0:00:05]} h6 {[%emt 0:00:29]} 23. Nh4 {[%emt 0:01:19]} Be6 {[%emt 0:01:58]} 24. f3 {[%emt 0:00:28]} Rhg8 {[%emt 0:00:20]} 25. Kf2 {[%emt 0:00:02]} Kc6 {[%emt 0:01:57]} 26. f4 {[%emt 0:00:11]} Bd6 {[%emt 0:00:09]} 27. Nxf6 {[%emt 0:00:26]} Rgf8 {[%emt 0:00:23]} 28. Ne4 {[%emt 0:01:07]} Be7 {[%emt 0:00:19]} 29. Nf3 {[%emt 0:00:04]} Kb7 {[%emt 0:00:24]} 30. b4 {[%emt 0:00:09]} Bc4 {[%emt 0:00:12]} 31. Ned2 {[%emt 0:00:10]} Be6 {[%emt 0:00:19]} 32. f5 {[%emt 0:00:11]} Bg5 {[%emt 0:00:00]} 33. fxe6 {[%emt 0:00:09]} Bxe3+ {[%emt 0:00:02]} 34. Kxe3 {[%emt 0:00:03]} fxe6 {[%emt 0:00:01]} 35. Ne4 {[%emt 0:00:16]} Rd5 {[%emt 0:00:05]} 36. c4 {[%emt 0:00:15]} Rdf5 {[%emt 0:00:01]} 37. Nh4 {[%emt 0:00:09]} Rf1 {[%emt 0:00:05]} 38. Ke2 {[%emt 0:00:16]} Rxe1+ {[%emt 0:00:10]} 39. Kxe1 {[%emt 0:00:00]} Rd8 {[%emt 0:00:01]} 40. Ke2 {[%emt 0:00:04]} Rd4 {[%emt 0:00:11]} 41. Nd2 {[%emt 0:00:03]} a5 {[%emt 0:00:07]} 42. Nhf3 {[%emt 0:00:04]} Rg4 {[%emt 0:00:04]} 43. Ke3 {[%emt 0:00:10]} axb4 {[%emt 0:00:04]} 44. axb4 {[%emt 0:00:01]} Rg7 {[%emt 0:00:22]} 45. Ne5 {[%emt 0:00:24]} Rg8 {[%emt 0:00:08]} 46. g4 {[%emt 0:00:08]} Ra8 {[%emt 0:00:35]} 47. h4 {[%emt 0:00:08]} Ra3+ {[%emt 0:00:02]} 48. Nd3 {[%emt 0:00:29]} Kc8 {[%emt 0:00:04]} 49. Ke4 {[%emt 0:00:05]} Kd8 {[%emt 0:00:02]} 50. Nf3 {[%emt 0:00:02]} Ke7 {[%emt 0:00:03]} 51. Nd4 {[%emt 0:00:07]} Ra1 {[%emt 0:00:18]} 52. Nb5 {[%emt 0:00:38]} Rh1 {[%emt 0:00:31]} 53. h5 {[%emt 0:00:04]} Rg1 {[%emt 0:00:05]} 54. Kf3 {[%emt 0:00:35]} c6 {[%emt 0:00:30]} 55. Nc3 {[%emt 0:00:21]} Ra1 {[%emt 0:00:19]} 56. Ne4 {[%emt 0:00:10]} Ra3 {[%emt 0:00:03]} 57. Ke3 {[%emt 0:00:06]} e5 {[%emt 0:00:07]} 58. g5 {[%emt 0:00:12]} hxg5 {[%emt 0:00:02]} 59. h6 {[%emt 0:00:13]} Kf7 {[%emt 0:00:01]} 60. Nxg5+ {[%emt 0:00:09]} Kg6 {[%emt 0:00:01]} 61. h7 {[%emt 0:00:04]} Ra8 {[%emt 0:00:10]} 62. Nxe5+ {[%emt 0:00:05]} Kxg5 {[%emt 0:00:02]} 63. h8=Q {[%emt 0:00:12]} Rxh8 {[%emt 0:00:03]} 64. Nf7+ {[%emt 0:00:01]} Kf6 {[%emt 0:00:04]} 65. Nxh8 {[%emt 0:00:01]} b5 {[%emt 0:00:45]} 66. cxb5 {[%emt 0:00:05]} cxb5 {[%emt 0:00:02]} 67. Kd4 {[%emt 0:00:01]} Kg7 {[%emt 0:00:09]} 1-0

[Event "FIDE Open World Rapid 2024"]
[Site "New York"]
[Date "2024.12.27"]
[Round "8.39"]
[White "Sarana, Alexey"]
[Black "Kadric, Denis"]
[Result "1-0"]
[ECO "E61"]
[WhiteElo "2674"]
[BlackElo "2544"]
[Annotator "ChessBase"]
[PlyCount "93"]
[EventDate "2024.12.14"]
[EventType "swiss"]
[EventCountry "USA"]
[SourceTitle "playchess.com"]
[Source "ChessBase"]
[SourceQuality "1"]
[TimeControl "900+10"]

1. d4 {[%emt 0:00:19]} d6 {[%emt 0:00:01]} 2. Nf3 {[%emt 0:00:03]} Nf6 {[%emt 0:00:03]} 3. c4 {[%emt 0:00:01]} g6 {[%emt 0:00:02]} 4. Nc3 {[%emt 0:00:01]} Bf5 {[%emt 0:00:00]} 5. Qb3 {[%emt 0:00:06]} b6 {[%emt 0:00:03]} 6. g3 {[%emt 0:00:05]} Nc6 {[%emt 0:00:32]} 7. Bg2 {[%emt 0:00:02]} Bg7 {[%emt 0:00:09]} 8. O-O {[%emt 0:00:23]} O-O {[%emt 0:00:02]} 9. Qd1 {[%emt 0:00:04]} Ne4 {[%emt 0:01:42]} 10. Nd5 {[%emt 0:00:10]} Bd7 {[%emt 0:00:34]} 11. b3 {[%emt 0:00:52]} e6 {[%emt 0:01:39]} 12. Ne3 {[%emt 0:00:01]} f5 {[%emt 0:00:01]} 13. Bb2 {[%emt 0:00:02]} Qe7 {[%emt 0:00:29]} 14. Nd2 {[%emt 0:00:44]} Nxd2 {[%emt 0:01:51]} 15. Qxd2 {[%emt 0:00:02]} Rae8 {[%emt 0:01:20]} 16. f4 {[%emt 0:01:19]} Nd8 {[%emt 0:00:00]} 17. Rad1 {[%emt 0:00:56]} Nf7 {[%emt 0:00:07]} 18. b4 {[%emt 0:00:30]} Bc8 {[%emt 0:01:54]} 19. b5 {[%emt 0:00:14]} a5 {[%emt 0:00:09]} 20. Rc1 {[%emt 0:00:20]} Nd8 {[%emt 0:01:29]} 21. c5 {[%emt 0:00:20]} Bb7 {[%emt 0:01:54]} 22. c6 {[%emt 0:02:13]} Bc8 {[%emt 0:00:02]} 23. a4 {[%emt 0:00:10]} Nf7 {[%emt 0:00:20]} 24. Ba3 {[%emt 0:00:10]} Qf6 {[%emt 0:00:03]} 25. Rcd1 {[%emt 0:00:14]} Rd8 {[%emt 0:00:08]} 26. Nc4 {[%emt 0:00:06]} Rfe8 {[%emt 0:00:06]} 27. e3 {[%emt 0:00:20]} e5 {[%emt 0:00:52]} 28. d5 {[%emt 0:00:06]} exf4 {[%emt 0:00:21]} 29. exf4 {[%emt 0:00:29]} Qc3 {[%emt 0:00:07]} 30. Qxc3 {[%emt 0:00:18]} Bxc3 {[%emt 0:00:01]} 31. Rd3 {[%emt 0:00:01]} Bf6 {[%emt 0:00:02]} 32. Bc1 {[%emt 0:00:16]} Re2 {[%emt 0:00:15]} 33. Bd2 {[%emt 0:00:17]} Rde8 {[%emt 0:00:04]} 34. Bf3 {[%emt 0:00:02]} R2e7 {[%emt 0:01:40]} 35. Kf2 {[%emt 0:00:04]} h5 {[%emt 0:00:20]} 36. Re1 {[%emt 0:00:22]} Rxe1 {[%emt 0:00:13]} 37. Bxe1 {[%emt 0:00:01]} h4 {[%emt 0:00:01]} 38. Bd2 {[%emt 0:01:15]} h3 {[%emt 0:00:45]} 39. Nxa5 {[%emt 0:00:59]} bxa5 {[%emt 0:00:20]} 40. Bxa5 {[%emt 0:00:02]} Nh6 {[%emt 0:01:46]} 41. Bc3 {[%emt 0:03:49]} Bd8 {[%emt 0:00:18]} 42. Re3 {[%emt 0:00:38]} Rxe3 {[%emt 0:00:11]} 43. Kxe3 {[%emt 0:00:01]} g5 {[%emt 0:00:01]} 44. a5 {[%emt 0:01:05]} gxf4+ {[%emt 0:00:01]} 45. gxf4 {[%emt 0:00:01]} Ng4+ {[%emt 0:00:01]} 46. Ke2 {[%emt 0:00:09]} Bh4 {[%emt 0:00:38]} 47. a6 {[%emt 0:00:03]} 1-0

[Event "FIDE Open World Rapid 2024"]
[Site "New York"]
[Date "2024.12.28"]
[Round "8.39"]
[White "Kvaloy, Aksel Bu"]
[Black "Gretarsson, Helgi Ass"]
[Result "0-1"]
[ECO "C83"]
[WhiteElo "2490"]
[BlackElo "2418"]
[Annotator "ChessBase"]
[PlyCount "74"]
[EventDate "2024.12.14"]
[EventType "swiss"]
[EventCountry "USA"]
[SourceTitle "playchess.com"]
[Source "ChessBase"]
[SourceQuality "1"]
[TimeControl "900+10"]

1. e4 {[%emt 0:00:03]} e5 {[%emt 0:00:02]} 2. Nf3 {[%emt 0:00:01]} Nc6 {[%emt 0:00:01]} 3. Bb5 {[%emt 0:00:02]} a6 {[%emt 0:00:07]} 4. Ba4 {[%emt 0:00:02]} Nf6 {[%emt 0:00:16]} 5. d4 {[%emt 0:00:05]} Nxe4 {[%emt 0:00:26]} 6. O-O {[%emt 0:00:58]} b5 {[%emt 0:00:23]} 7. Bb3 {[%emt 0:00:24]} d5 {[%emt 0:00:02]} 8. dxe5 {[%emt 0:00:20]} Be6 {[%emt 0:00:01]} 9. c3 {[%emt 0:00:03]} Be7 {[%emt 0:00:21]} 10. Nbd2 {[%emt 0:00:24]} Nc5 {[%emt 0:00:12]} 11. Bc2 {[%emt 0:00:21]} Bg4 {[%emt 0:01:46]} 12. h3 {[%emt 0:00:28]} Bh5 {[%emt 0:00:02]} 13. Re1 {[%emt 0:00:21]} d4 {[%emt 0:02:09]} 14. b4 {[%emt 0:02:21]} d3 {[%emt 0:02:32]} 15. Bb1 {[%emt 0:00:30]} Na4 {[%emt 0:00:02]} 16. Qb3 {[%emt 0:00:19]} O-O {[%emt 0:00:37]} 17. Re3 {[%emt 0:00:15]} Bg6 {[%emt 0:00:05]} 18. Ne4 {[%emt 0:00:48]} Kh8 {[%emt 0:01:32]} 19. Bxd3 {[%emt 0:00:41]} f5 {[%emt 0:00:05]} 20. exf6 {[%emt 0:00:43]} Bxf6 {[%emt 0:00:02]} 21. Bd2 {[%emt 0:00:49]} Ne5 {[%emt 0:00:21]} 22. Nxe5 {[%emt 0:00:46]} Bxe5 {[%emt 0:00:02]} 23. Qc2 {[%emt 0:00:59]} Qh4 {[%emt 0:00:37]} 24. Ng3 {[%emt 0:01:53]} Rxf2 {[%emt 0:00:36]} 25. Bxg6 {[%emt 0:01:49]} Bxg3 {[%emt 0:01:04]} 26. Be4 {[%emt 0:03:28]} Bf4 {[%emt 0:01:34]} 27. Qd1 {[%emt 0:00:31]} Rd8 {[%emt 0:01:07]} 28. Qe1 {[%emt 0:00:15]} Rdxd2 {[%emt 0:00:53]} 29. Bf3 {[%emt 0:00:00]} Bxe3 {[%emt 0:00:48]} 30. Qxe3 {[%emt 0:00:01]} Qd8 {[%emt 0:00:07]} 31. Re1 {[%emt 0:00:01]} h6 {[%emt 0:01:18]} 32. Qe4 {[%emt 0:00:01]} Nxc3 {[%emt 0:00:41]} 33. Qg6 {[%emt 0:00:29]} Ne2+ {[%emt 0:00:04]} 34. Kh1 {[%emt 0:00:11]} Rd1 {[%emt 0:00:02]} 35. Be4 {[%emt 0:00:09]} Rxe1+ {[%emt 0:00:01]} 36. Kh2 {[%emt 0:00:01]} Rh1+ {[%emt 0:00:07]} 37. Kxh1 {[%emt 0:00:02]} Qd1+ {[%emt 0:00:01]} 0-1

[Event "FIDE Open World Rapid 2024"]
[Site "New York"]
[Date "2024.12.27"]
[Round "8.40"]
[White "Van Foreest, Jorden"]
[Black "Chirila, Ioan-Cristian"]
[Result "1/2-1/2"]
[ECO "B30"]
[WhiteElo "2677"]
[BlackElo "2530"]
[Annotator "ChessBase"]
[PlyCount "91"]
[EventDate "2024.12.14"]
[EventType "swiss"]
[EventCountry "USA"]
[SourceTitle "playchess.com"]
[Source "ChessBase"]
[SourceQuality "1"]
[TimeControl "900+10"]

1. e4 {[%emt 0:00:08]} c5 {[%emt 0:00:05]} 2. Nf3 {[%emt 0:00:00]} e6 {[%emt 0:00:18]} 3. g3 {[%emt 0:00:06]} Nc6 {[%emt 0:00:29]} 4. Bg2 {[%emt 0:00:03]} g6 {[%emt 0:00:02]} 5. d3 {[%emt 0:00:29]} Bg7 {[%emt 0:00:04]} 6. Bg5 {[%emt 0:01:58]} Nge7 {[%emt 0:01:20]} 7. Nc3 {[%emt 0:00:08]} d5 {[%emt 0:01:54]} 8. exd5 {[%emt 0:00:31]} exd5 {[%emt 0:00:02]} 9. O-O {[%emt 0:00:03]} h6 {[%emt 0:00:16]} 10. Bxe7 {[%emt 0:02:56]} Nxe7 {[%emt 0:00:03]} 11. d4 {[%emt 0:00:01]} cxd4 {[%emt 0:01:45]} 12. Nxd4 {[%emt 0:00:02]} O-O {[%emt 0:00:04]} 13. Qd2 {[%emt 0:00:03]} Nc6 {[%emt 0:00:27]} 14. Nce2 {[%emt 0:01:27]} Bg4 {[%emt 0:00:26]} 15. c3 {[%emt 0:00:02]} Nxd4 {[%emt 0:02:47]} 16. Nxd4 {[%emt 0:00:03]} Qd7 {[%emt 0:00:02]} 17. Rfe1 {[%emt 0:00:38]} Rfe8 {[%emt 0:00:14]} 18. Nc2 {[%emt 0:00:03]} Rxe1+ {[%emt 0:00:25]} 19. Rxe1 {[%emt 0:00:03]} Rd8 {[%emt 0:00:00]} 20. Ne3 {[%emt 0:00:41]} Be6 {[%emt 0:00:09]} 21. Bxd5 {[%emt 0:01:04]} h5 {[%emt 0:02:04]} 22. Rd1 {[%emt 0:00:40]} Bh6 {[%emt 0:00:32]} 23. c4 {[%emt 0:00:16]} Bxe3 {[%emt 0:00:34]} 24. Qxe3 {[%emt 0:00:39]} Qa4 {[%emt 0:00:05]} 25. Qd3 {[%emt 0:00:27]} Qxa2 {[%emt 0:00:55]} 26. Qd4 {[%emt 0:00:36]} Qa4 {[%emt 0:01:21]} 27. Qd2 {[%emt 0:00:01]} b5 {[%emt 0:00:33]} 28. Re1 {[%emt 0:00:01]} Qxc4 {[%emt 0:00:12]} 29. Bxc4 {[%emt 0:00:49]} Rxd2 {[%emt 0:00:02]} 30. Bxe6 {[%emt 0:00:01]} fxe6 {[%emt 0:00:01]} 31. Rxe6 {[%emt 0:00:04]} Kf7 {[%emt 0:01:02]} 32. Ra6 {[%emt 0:00:01]} Rxb2 {[%emt 0:00:02]} 33. Kg2 {[%emt 0:00:01]} Re2 {[%emt 0:01:00]} 34. Rxa7+ {[%emt 0:00:58]} Re7 {[%emt 0:00:01]} 35. Ra3 {[%emt 0:00:11]} b4 {[%emt 0:00:15]} 36. Rb3 {[%emt 0:00:02]} Re4 {[%emt 0:00:18]} 37. Kf3 {[%emt 0:00:12]} Rc4 {[%emt 0:00:01]} 38. Re3 {[%emt 0:00:56]} Kf6 {[%emt 0:00:11]} 39. Re8 {[%emt 0:00:10]} b3 {[%emt 0:00:30]} 40. Rb8 {[%emt 0:00:02]} Rc3+ {[%emt 0:00:02]} 41. Ke4 {[%emt 0:00:01]} Rc4+ {[%emt 0:00:40]} 42. Kd3 {[%emt 0:00:24]} Rc2 {[%emt 0:00:01]} 43. h4 {[%emt 0:00:05]} Kg7 {[%emt 0:00:22]} 44. Rb7+ {[%emt 0:00:02]} Kf6 {[%emt 0:00:05]} 45. Rb6+ {[%emt 0:00:05]} Kg7 {[%emt 0:00:05]} 46. Rxb3 {[%emt 0:00:21]} 1/2-1/2

[Event "FIDE Open World Rapid 2024"]
[Site "New York"]
[Date "2024.12.28"]
[Round "8.40"]
[White "Chanda, Sandipan"]
[Black "Pereira, Fabian"]
[Result "1-0"]
[ECO "A67"]
[WhiteElo "2480"]
[BlackElo "2123"]
[Annotator "ChessBase"]
[PlyCount "79"]
[EventDate "2024.12.14"]
[EventType "swiss"]
[EventCountry "USA"]
[SourceTitle "playchess.com"]
[Source "ChessBase"]
[SourceQuality "1"]
[TimeControl "900+10"]

1. d4 {[%emt 0:00:04]} Nf6 {[%emt 0:00:02]} 2. c4 {[%emt 0:00:02]} c5 {[%emt 0:00:01]} 3. d5 {[%emt 0:00:02]} e6 {[%emt 0:00:01]} 4. Nc3 {[%emt 0:00:02]} exd5 {[%emt 0:00:01]} 5. cxd5 {[%emt 0:00:01]} d6 {[%emt 0:00:01]} 6. e4 {[%emt 0:00:02]} g6 {[%emt 0:00:01]} 7. f4 {[%emt 0:00:02]} Bg7 {[%emt 0:00:01]} 8. Bb5+ {[%emt 0:00:02]} Nfd7 {[%emt 0:00:02]} 9. a4 {[%emt 0:00:02]} O-O {[%emt 0:00:06]} 10. Nf3 {[%emt 0:00:01]} Na6 {[%emt 0:00:01]} 11. O-O {[%emt 0:00:03]} Nb4 {[%emt 0:00:01]} 12. Re1 {[%emt 0:00:02]} a6 {[%emt 0:00:02]} 13. Bf1 {[%emt 0:00:02]} Re8 {[%emt 0:00:55]} 14. h3 {[%emt 0:00:06]} f5 {[%emt 0:02:25]} 15. Bd2 {[%emt 0:00:08]} Rb8 {[%emt 0:01:34]} 16. Qb3 {[%emt 0:01:48]} h6 {[%emt 0:01:38]} 17. Kh2 {[%emt 0:04:32]} Kh7 {[%emt 0:02:56]} 18. exf5 {[%emt 0:00:06]} gxf5 {[%emt 0:00:13]} 19. Rxe8 {[%emt 0:00:09]} Qxe8 {[%emt 0:00:03]} 20. Re1 {[%emt 0:00:02]} Qf7 {[%emt 0:00:13]} 21. Nd1 {[%emt 0:03:02]} a5 {[%emt 0:02:44]} 22. Ne3 {[%emt 0:00:45]} Nf6 {[%emt 0:00:16]} 23. Bxb4 {[%emt 0:00:19]} axb4 {[%emt 0:00:03]} 24. Bd3 {[%emt 0:00:02]} Nh5 {[%emt 0:01:08]} 25. Qc2 {[%emt 0:01:10]} Nxf4 {[%emt 0:00:46]} 26. Bxf5+ {[%emt 0:00:05]} Kh8 {[%emt 0:00:50]} 27. Qe4 {[%emt 0:00:23]} Bxf5 {[%emt 0:00:53]} 28. Qxf4 {[%emt 0:00:31]} Bg6 {[%emt 0:01:20]} 29. Qxd6 {[%emt 0:00:17]} Re8 {[%emt 0:00:08]} 30. Qg3 {[%emt 0:03:43]} Bxb2 {[%emt 0:00:27]} 31. d6 {[%emt 0:01:26]} Kh7 {[%emt 0:00:48]} 32. Qg4 {[%emt 0:00:54]} b3 {[%emt 0:00:30]} 33. d7 {[%emt 0:00:21]} Rd8 {[%emt 0:00:00]} 34. Rd1 {[%emt 0:00:08]} Bf6 {[%emt 0:00:18]} 35. Nd5 {[%emt 0:00:04]} b2 {[%emt 0:00:05]} 36. Qf4 {[%emt 0:00:18]} Kg7 {[%emt 0:00:11]} 37. Ne5 {[%emt 0:00:08]} Qe6 {[%emt 0:00:20]} 38. Nxg6 {[%emt 0:00:06]} Kxg6 {[%emt 0:00:01]} 39. Nxf6 {[%emt 0:00:06]} Qxf6 {[%emt 0:00:03]} 40. Rd6 {[%emt 0:00:04]} 1-0

[Event "FIDE Open World Rapid 2024"]
[Site "New York"]
[Date "2024.12.27"]
[Round "8.41"]
[White "Zemlyanskii, Ivan"]
[Black "Cheparinov, Ivan"]
[Result "0-1"]
[ECO "B12"]
[WhiteElo "2543"]
[BlackElo "2646"]
[Annotator "ChessBase"]
[PlyCount "80"]
[EventDate "2024.12.14"]
[EventType "swiss"]
[EventCountry "USA"]
[SourceTitle "playchess.com"]
[Source "ChessBase"]
[SourceQuality "1"]
[TimeControl "900+10"]

1. e4 {[%emt 0:00:02]} c6 {[%emt 0:01:44]} 2. d4 {[%emt 0:00:04]} d5 {[%emt 0:00:01]} 3. e5 {[%emt 0:00:01]} Bf5 {[%emt 0:00:02]} 4. c4 {[%emt 0:00:02]} e6 {[%emt 0:00:03]} 5. Nc3 {[%emt 0:00:02]} Bb4 {[%emt 0:00:02]} 6. cxd5 {[%emt 0:00:05]} cxd5 {[%emt 0:00:01]} 7. h4 {[%emt 0:00:02]} h6 {[%emt 0:00:10]} 8. g4 {[%emt 0:00:21]} Bh7 {[%emt 0:00:03]} 9. h5 {[%emt 0:00:02]} Nc6 {[%emt 0:00:07]} 10. Bd3 {[%emt 0:00:39]} Be4 {[%emt 0:00:02]} 11. Bxe4 {[%emt 0:02:43]} dxe4 {[%emt 0:00:01]} 12. Nge2 {[%emt 0:00:25]} f6 {[%emt 0:00:38]} 13. Qb3 {[%emt 0:04:30]} Qd5 {[%emt 0:02:25]} 14. O-O {[%emt 0:01:06]} Qxb3 {[%emt 0:00:25]} 15. axb3 {[%emt 0:00:01]} fxe5 {[%emt 0:00:39]} 16. d5 {[%emt 0:01:54]} Nd4 {[%emt 0:02:36]} 17. Nxd4 {[%emt 0:00:06]} exd4 {[%emt 0:00:01]} 18. Nb5 {[%emt 0:00:08]} Ke7 {[%emt 0:02:56]} 19. dxe6 {[%emt 0:02:53]} d3 {[%emt 0:00:00]} 20. Nc7 {[%emt 0:01:23]} Nf6 {[%emt 0:00:00]} 21. Nxa8 {[%emt 0:00:25]} Rxa8 {[%emt 0:00:00]} 22. Be3 {[%emt 0:00:07]} Nxg4 {[%emt 0:00:00]} 23. Bxa7 {[%emt 0:00:09]} Kxe6 {[%emt 0:00:00]} 24. Ra4 {[%emt 0:00:19]} Nf6 {[%emt 0:01:21]} 25. Be3 {[%emt 0:01:04]} Rxa4 {[%emt 0:00:05]} 26. bxa4 {[%emt 0:00:01]} Nd5 {[%emt 0:00:54]} 27. Bd4 {[%emt 0:00:14]} Kf5 {[%emt 0:00:59]} 28. Bxg7 {[%emt 0:00:25]} Kg5 {[%emt 0:00:01]} 29. Bd4 {[%emt 0:00:33]} Kxh5 {[%emt 0:00:05]} 30. Rc1 {[%emt 0:00:05]} Kg4 {[%emt 0:00:11]} 31. Kg2 {[%emt 0:00:08]} Nf4+ {[%emt 0:00:28]} 32. Kf1 {[%emt 0:00:01]} h5 {[%emt 0:00:35]} 33. Be3 {[%emt 0:00:17]} Nd5 {[%emt 0:00:28]} 34. Rc4 {[%emt 0:00:17]} Kf3 {[%emt 0:00:03]} 35. Bg5 {[%emt 0:00:12]} e3 {[%emt 0:01:18]} 36. Bxe3 {[%emt 0:00:10]} Nxe3+ {[%emt 0:00:02]} 37. fxe3 {[%emt 0:00:02]} d2 {[%emt 0:00:01]} 38. Rd4 {[%emt 0:00:02]} Kxe3 {[%emt 0:00:01]} 39. Rd8 {[%emt 0:00:06]} Bc5 {[%emt 0:00:11]} 40. Re8+ {[%emt 0:00:33]} Kd3 {[%emt 0:00:01]} 0-1

[Event "FIDE Open World Rapid 2024"]
[Site "New York"]
[Date "2024.12.27"]
[Round "8.41"]
[White "Meylan, Andre"]
[Black "Hungaski, Robert"]
[Result "0-1"]
[ECO "C05"]
[WhiteElo "2138"]
[BlackElo "2477"]
[Annotator "ChessBase"]
[PlyCount "60"]
[EventDate "2024.12.14"]
[EventType "swiss"]
[EventCountry "USA"]
[SourceTitle "playchess.com"]
[Source "ChessBase"]
[SourceQuality "1"]
[TimeControl "900+10"]

1. e4 {[%emt 0:00:02]} e6 {[%emt 0:00:02]} 2. d4 {[%emt 0:00:02]} d5 {[%emt 0:00:02]} 3. Nd2 {[%emt 0:00:02]} Nf6 {[%emt 0:00:04]} 4. e5 {[%emt 0:00:01]} Ng8 {[%emt 0:00:02]} 5. c3 {[%emt 0:00:25]} Bd7 {[%emt 0:01:02]} 6. f4 {[%emt 0:00:20]} c5 {[%emt 0:00:14]} 7. Ndf3 {[%emt 0:00:02]} Qb6 {[%emt 0:00:15]} 8. Bd3 {[%emt 0:01:13]} Bb5 {[%emt 0:00:45]} 9. Ne2 {[%emt 0:00:02]} Bxd3 {[%emt 0:01:34]} 10. Qxd3 {[%emt 0:00:02]} c4 {[%emt 0:00:02]} 11. Qc2 {[%emt 0:00:47]} Ne7 {[%emt 0:00:23]} 12. O-O {[%emt 0:00:33]} g6 {[%emt 0:00:22]} 13. b3 {[%emt 0:01:11]} cxb3 {[%emt 0:00:17]} 14. axb3 {[%emt 0:00:06]} Nbc6 {[%emt 0:00:09]} 15. Ba3 {[%emt 0:02:28]} Nf5 {[%emt 0:00:04]} 16. Kf2 {[%emt 0:00:20]} Rc8 {[%emt 0:01:28]} 17. Qd1 {[%emt 0:01:11]} h5 {[%emt 0:00:36]} 18. g3 {[%emt 0:01:50]} Bxa3 {[%emt 0:00:51]} 19. Rxa3 {[%emt 0:00:02]} a6 {[%emt 0:00:02]} 20. h3 {[%emt 0:00:23]} Na7 {[%emt 0:00:38]} 21. Ra1 {[%emt 0:01:06]} Nb5 {[%emt 0:00:36]} 22. Rc1 {[%emt 0:00:10]} h4 {[%emt 0:00:15]} 23. gxh4 {[%emt 0:01:39]} Nxh4 {[%emt 0:00:34]} 24. Nxh4 {[%emt 0:00:18]} Rxh4 {[%emt 0:00:13]} 25. Kg3 {[%emt 0:00:06]} Qd8 {[%emt 0:02:32]} 26. c4 {[%emt 0:00:21]} Nc7 {[%emt 0:00:08]} 27. cxd5 {[%emt 0:01:01]} exd5 {[%emt 0:01:26]} 28. f5 {[%emt 0:00:01]} Qg5+ {[%emt 0:01:08]} 29. Kh2 {[%emt 0:00:01]} Kd7 {[%emt 0:03:08]} 30. fxg6 {[%emt 0:00:02]} Rxh3+ {[%emt 0:00:24]} 0-1